[Event "Hoogeveen Open 2023"]
[Site "Hoogeveen, Netherlands"]
[Date "2023.10.28"]
[Round "9.5"]
[White "Krishnan, Ritvik"]
[Black "Maatman, Nick"]
[Result "0-1"]
[TimeControl "90min/40moves + 30min + 30sec/move"]
[WhiteFideId "45055297"]
[BlackFideId "1040391"]
[WhiteElo "2176"]
[BlackElo "2382"]

1. Nf3 {[%clk 01:30:54]} {[%emt 00:00:05]} Nf6 {[%clk 01:30:27]} {[%emt
00:00:34]} 2. c4 {[%clk 01:31:17]} {[%emt 00:00:07]} c6 {[%clk 01:28:28]}
{[%emt 00:02:29]} 3. g3 {[%clk 01:31:25]} {[%emt 00:00:22]} d5 {[%clk
01:28:54]} {[%emt 00:00:04]} 4. Bg2 {[%clk 01:31:52]} {[%emt 00:00:04]} Bf5
{[%clk 01:27:21]} {[%emt 00:02:02]} 5. Qb3 {[%clk 01:32:09]} {[%emt 00:00:14]}
Qb6 {[%clk 01:25:00]} {[%emt 00:02:51]} 6. d3 {[%clk 01:32:26]} {[%emt
00:00:13]} dxc4 {[%clk 01:20:10]} {[%emt 00:05:20]} 7. Qxc4 {[%clk 01:31:25]}
{[%emt 00:01:31]} h6 {[%clk 01:04:59]} {[%emt 00:15:41]} 8. O-O {[%clk
01:30:10]} {[%emt 00:01:45]} e6 {[%clk 01:05:06]} {[%emt 00:00:24]} 9. Nbd2
{[%clk 01:27:58]} {[%emt 00:02:42]} Be7 {[%clk 01:03:38]} {[%emt 00:01:57]} 10.
Qc2 {[%clk 01:26:28]} {[%emt 00:02:00]} O-O {[%clk 01:03:10]} {[%emt 00:00:59]}
11. Nc4 {[%clk 01:25:49]} {[%emt 00:01:10]} Qa6 {[%clk 01:02:12]} {[%emt
00:01:28]} 12. b3 {[%clk 01:21:07]} {[%emt 00:05:12]} Nbd7 {[%clk 00:59:35]}
{[%emt 00:03:07]} 13. Bb2 {[%clk 01:19:30]} {[%emt 00:02:07]} Bh7 {[%clk
00:58:43]} {[%emt 00:01:21]} 14. Rac1 {[%clk 01:02:48]} {[%emt 00:17:13]} Rac8
{[%clk 00:58:38]} {[%emt 00:00:35]} 15. Qb1 {[%clk 01:02:14]} {[%emt 00:01:04]}
Rfd8 {[%clk 00:56:07]} {[%emt 00:03:00]} 16. Qa1 {[%clk 01:00:35]} {[%emt
00:02:10]} Bf8 {[%clk 00:55:20]} {[%emt 00:01:16]} 17. Rfd1 {[%clk 00:56:29]}
{[%emt 00:04:36]} Nd5 {[%clk 00:47:40]} {[%emt 00:08:11]} 18. a3 {[%clk
00:47:44]} {[%emt 00:09:15]} c5 {[%clk 00:45:48]} {[%emt 00:02:21]} 19. Nfd2
{[%clk 00:43:29]} {[%emt 00:04:45]} b5 {[%clk 00:44:46]} {[%emt 00:01:32]} 20.
Ne5 {[%clk 00:43:54]} {[%emt 00:00:05]} Nxe5 {[%clk 00:44:54]} {[%emt
00:00:22]} 21. Bxe5 {[%clk 00:44:22]} {[%emt 00:00:02]} Qb6 {[%clk 00:41:11]}
{[%emt 00:04:12]} 22. Ne4 {[%clk 00:41:42]} {[%emt 00:03:09]} Ne7 {[%clk
00:37:43]} {[%emt 00:03:59]} 23. b4 {[%clk 00:33:36]} {[%emt 00:08:36]} cxb4
{[%clk 00:30:01]} {[%emt 00:08:13]} 24. Rxc8 {[%clk 00:34:02]} {[%emt
00:00:04]} Rxc8 {[%clk 00:23:59]} {[%emt 00:06:31]} 25. Bd4 {[%clk 00:33:19]}
{[%emt 00:01:13]} Qd8 {[%clk 00:23:25]} {[%emt 00:01:04]} 26. axb4 {[%clk
00:33:18]} {[%emt 00:00:31]} Nc6 {[%clk 00:21:52]} {[%emt 00:02:03]} 27. Bc5
{[%clk 00:31:24]} {[%emt 00:02:24]} Nxb4 {[%clk 00:13:54]} {[%emt 00:08:29]} 28.
Bxf8 {[%clk 00:31:24]} {[%emt 00:00:30]} Qxf8 {[%clk 00:14:00]} {[%emt
00:00:23]} 29. Qxa7 {[%clk 00:31:42]} {[%emt 00:00:12]} Nd5 {[%clk 00:14:07]}
{[%emt 00:00:24]} 30. Nd2 {[%clk 00:26:01]} {[%emt 00:06:10]} Nc3 {[%clk
00:12:15]} {[%emt 00:02:22]} 31. Re1 {[%clk 00:26:24]} {[%emt 00:00:07]} Bg6
{[%clk 00:10:57]} {[%emt 00:01:49]} 32. Bf3 {[%clk 00:25:56]} {[%emt 00:00:57]}
b4 {[%emt 00:01:35]} 33. Nb3 {[%clk 00:25:57]} Qd6 {[%clk 00:09:38]} {[%emt
00:01:12]} 34. Rc1 {[%clk 00:23:51]} {[%emt 00:02:36]} Bf5 {[%clk 00:08:11]}
{[%emt 00:01:58]} 35. Qa1 {[%clk 00:22:35]} {[%emt 00:01:45]} e5 {[%clk
00:07:57]} {[%emt 00:00:44]} 36. Qb2 {[%clk 00:21:04]} {[%emt 00:02:01]} Be6
{[%clk 00:07:51]} {[%emt 00:00:37]} 37. Nd2 {[%clk 00:20:19]} {[%emt 00:01:14]}
Qd4 {[%clk 00:06:43]} {[%emt 00:01:38]} 38. Rc2 {[%clk 00:19:36]} {[%emt
00:01:14]} Rb8 {[%clk 00:05:22]} {[%emt 00:01:51]} 39. Nb3 {[%clk 00:18:16]}
{[%emt 00:01:50]} Qa7 {[%clk 00:04:12]} {[%emt 00:01:38]} 40. Nd2 {[%clk
00:16:52]} {[%emt 00:01:56]} Nd1 {[%clk 00:03:13]} {[%emt 00:01:28]} 41. Qxe5
{[%clk 00:15:34]} {[%emt 00:01:47]} Qxf2+ {[%clk 00:01:57]} {[%emt 00:01:46]}
42. Kh1 {[%clk 00:16:04]} {[%emt 00:00:01]} Re8 {[%clk 00:25:51]} {[%emt
00:06:36]} 43. h4 {[%clk 00:33:38]} {[%emt 00:12:55]} Bd7 {[%clk 00:15:53]}
{[%emt 00:10:28]} 44. Qf4 {[%clk 00:32:05]} {[%emt 00:02:03]} Qe1+ {[%clk
00:13:03]} {[%emt 00:03:20]} 45. Kh2 {[%clk 00:32:17]} {[%emt 00:00:18]} Rxe2+
{[%clk 00:13:27]} {[%emt 00:00:06]} 46. Bxe2 {[%clk 00:32:32]} {[%emt
00:00:15]} Qxe2+ {[%clk 00:13:53]} {[%emt 00:00:04]} 47. Kg1 {[%clk 00:32:13]}
{[%emt 00:00:49]} Ne3 {[%clk 00:14:16]} {[%emt 00:00:07]} 0-1

[Event "Hoogeveen Open 2023"]
[Site "Hoogeveen, Netherlands"]
[Date "2023.10.28"]
[Round "9.6"]
[White "Paltrinieri, Nicholas"]
[Black "Labruyere, Roger"]
[Result "1-0"]
[TimeControl "90min/40moves + 30min + 30sec/move"]
[WhiteFideId "828262"]
[BlackFideId "1059505"]
[WhiteElo "2344"]
[BlackElo "2148"]

1. d4 {[%clk 01:22:57]} {[%emt 00:07:57]} d5 {[%clk 01:30:36]} {[%emt
00:00:29]} 2. Bf4 {[%clk 01:23:14]} {[%emt 00:00:13]} Nf6 {[%clk 01:30:42]}
{[%emt 00:00:24]} 3. Nc3 {[%clk 01:23:32]} {[%emt 00:00:12]} c5 {[%clk
01:30:36]} {[%emt 00:00:36]} 4. e3 {[%clk 01:22:01]} {[%emt 00:02:01]} a6
{[%clk 01:26:51]} {[%emt 00:04:15]} 5. dxc5 {[%clk 01:22:19]} {[%emt 00:00:13]}
Nc6 {[%clk 01:24:22]} {[%emt 00:02:58]} 6. Nf3 {[%clk 01:09:51]} {[%emt
00:12:58]} e6 {[%clk 01:20:24]} {[%emt 00:04:29]} 7. Na4 {[%clk 01:08:37]}
{[%emt 00:01:44]} Bxc5 {[%clk 01:19:54]} {[%emt 00:01:00]} 8. Nxc5 {[%clk
01:09:03]} {[%emt 00:00:05]} Qa5+ {[%clk 01:20:20]} {[%emt 00:00:04]} 9. c3
{[%clk 01:09:28]} {[%emt 00:00:05]} Qxc5 {[%clk 01:20:46]} {[%emt 00:00:04]} 10.
Be2 {[%clk 01:08:42]} {[%emt 00:01:16]} O-O {[%clk 01:21:08]} {[%emt 00:00:08]}
11. O-O {[%clk 01:08:51]} {[%emt 00:00:20]} Re8 {[%clk 01:05:48]} {[%emt
00:15:51]} 12. Ne5 {[%clk 01:08:36]} {[%emt 00:00:44]} Nxe5 {[%clk 01:01:20]}
{[%emt 00:04:58]} 13. Bxe5 {[%clk 01:08:50]} {[%emt 00:00:16]} Nd7 {[%clk
01:01:40]} {[%emt 00:00:10]} 14. Bg3 {[%clk 01:07:53]} {[%emt 00:01:26]} Nb6
{[%clk 00:48:29]} {[%emt 00:13:42]} 15. Qc2 {[%clk 00:44:10]} {[%emt 00:24:13]}
Bd7 {[%clk 00:44:26]} {[%emt 00:04:33]} 16. Rfd1 {[%clk 00:44:23]} {[%emt
00:00:16]} Bb5 {[%clk 00:44:38]} {[%emt 00:00:19]} 17. Bf3 {[%clk 00:44:12]}
{[%emt 00:00:42]} e5 {[%clk 00:42:08]} {[%emt 00:03:00]} 18. a4 {[%clk
00:41:54]} {[%emt 00:02:48]} Bc6 {[%clk 00:42:24]} {[%emt 00:00:13]} 19. a5
{[%clk 00:41:59]} {[%emt 00:00:25]} e4 {[%clk 00:39:34]} {[%emt 00:03:19]} 20.
Be2 {[%clk 00:36:31]} {[%emt 00:05:58]} Nd7 {[%clk 00:38:07]} {[%emt 00:01:57]}
21. Rd4 {[%clk 00:35:06]} {[%emt 00:01:56]} Nf8 {[%clk 00:36:26]} {[%emt
00:02:11]} 22. b4 {[%clk 00:34:43]} {[%emt 00:00:53]} Qe7 {[%clk 00:33:24]}
{[%emt 00:03:31]} 23. Rd2 {[%clk 00:35:09]} {[%emt 00:00:04]} Rac8 {[%clk
00:31:54]} {[%emt 00:02:00]} 24. Qb3 {[%clk 00:35:33]} {[%emt 00:00:06]} Qf6
{[%clk 00:31:52]} {[%emt 00:00:31]} 25. Rc1 {[%clk 00:35:34]} {[%emt 00:00:30]}
Ne6 {[%clk 00:31:51]} {[%emt 00:00:31]} 26. h3 {[%clk 00:34:11]} {[%emt
00:01:53]} Red8 {[%clk 00:30:51]} {[%emt 00:01:30]} 27. Bg4 {[%clk 00:33:53]}
{[%emt 00:00:47]} Rd7 {[%clk 00:22:59]} {[%emt 00:08:22]} 28. Be2 {[%clk
00:28:59]} {[%emt 00:05:24]} Qg5 {[%clk 00:22:21]} {[%emt 00:01:08]} 29. Rcd1
{[%clk 00:26:59]} {[%emt 00:02:31]} Rcd8 {[%clk 00:21:15]} {[%emt 00:01:37]} 30.
Qa2 {[%clk 00:27:22]} {[%emt 00:00:07]} f5 {[%clk 00:17:36]} {[%emt 00:04:08]}
31. Be5 {[%clk 00:23:54]} {[%emt 00:03:57]} f4 {[%clk 00:16:35]} {[%emt
00:01:31]} 32. exf4 {[%clk 00:24:08]} {[%emt 00:00:17]} Nxf4 {[%clk 00:17:01]}
{[%emt 00:00:04]} 33. Bxf4 {[%clk 00:24:32]} {[%emt 00:00:05]} Qxf4 {[%clk
00:17:26]} {[%emt 00:00:05]} 34. Rd4 {[%clk 00:22:15]} {[%emt 00:02:48]} Rf7
{[%clk 00:15:00]} {[%emt 00:02:56]} 35. Bc4 {[%clk 00:17:03]} {[%emt 00:05:42]}
Rdf8 {[%clk 00:14:28]} {[%emt 00:01:01]} 36. Rxd5 {[%clk 00:17:28]} {[%emt
00:00:06]} e3 {[%clk 00:13:09]} {[%emt 00:01:49]} 37. f3 {[%clk 00:17:01]}
{[%emt 00:00:57]} Bxd5 {[%clk 00:10:59]} {[%emt 00:02:40]} 38. Bxd5 {[%clk
00:17:24]} {[%emt 00:00:08]} g6 {[%clk 00:07:03]} {[%emt 00:04:26]} 39. Bxf7+
{[%clk 00:10:51]} {[%emt 00:07:03]} Rxf7 {[%clk 00:07:31]} 40. Qe6 {[%clk
00:08:39]} {[%emt 00:02:41]} Kg7 {[%clk 00:05:13]} {[%emt 00:02:49]} 41. Re1
{[%clk 00:06:42]} {[%emt 00:02:27]} h5 {[%clk 00:02:24]} {[%emt 00:03:20]} 42.
Rxe3 {[%clk 00:05:27]} {[%emt 00:01:45]} Kh7 {[%clk 00:02:18]} {[%emt
00:00:36]} 43. Qe5 {[%clk 00:04:51]} {[%emt 00:01:06]} Qc4 {[%clk 00:02:12]}
{[%emt 00:00:36]} 44. Re4 {[%clk 00:04:19]} {[%emt 00:01:01]} Qd3 {[%clk
00:02:28]} {[%emt 00:00:14]} 45. Qd4 {[%clk 00:04:11]} {[%emt 00:00:39]} Qb1+
{[%clk 00:02:36]} {[%emt 00:00:21]} 46. Kh2 {[%clk 00:04:35]} {[%emt 00:00:06]}
Qc2 {[%clk 00:02:57]} {[%emt 00:00:10]} 47. Re8 {[%clk 00:04:33]} {[%emt
00:00:32]} Rg7 {[%clk 00:03:14]} {[%emt 00:00:13]} 48. Qd8 {[%clk 00:04:49]}
{[%emt 00:00:14]} Rf7 {[%clk 00:03:01]} {[%emt 00:00:43]} 49. Rh8+ {[%clk
00:05:11]} {[%emt 00:00:07]} Kg7 {[%clk 00:03:25]} {[%emt 00:00:07]} 50. Qd4+
{[%clk 00:05:34]} {[%emt 00:00:08]} Rf6 {[%clk 00:03:51]} {[%emt 00:00:04]} 51.
Rb8 {[%clk 00:05:31]} {[%emt 00:00:33]} 1-0

[Event "Hoogeveen Open 2023"]
[Site "Hoogeveen, Netherlands"]
[Date "2023.10.28"]
[Round "9.7"]
[White "Slagboom, Leandro"]
[Black "Kiran, Manisha Mohanty"]
[Result "1-0"]
[TimeControl "90min/40moves + 30min + 30sec/move"]
[WhiteFideId "1065882"]
[BlackFideId "5019575"]
[WhiteElo "2305"]
[BlackElo "2034"]

1. e4 {[%clk 01:30:57]} {[%emt 00:00:02]} c5 {[%clk 01:29:10]} {[%emt
00:01:51]} 2. Nf3 {[%clk 01:31:19]} {[%emt 00:00:08]} d6 {[%clk 01:29:35]}
{[%emt 00:00:04]} 3. d4 {[%clk 01:31:45]} {[%emt 00:00:05]} cxd4 {[%clk
01:30:01]} {[%emt 00:00:05]} 4. Nxd4 {[%clk 01:32:11]} {[%emt 00:00:04]} Nf6
{[%clk 01:30:25]} {[%emt 00:00:05]} 5. Nc3 {[%clk 01:32:36]} {[%emt 00:00:05]}
Nc6 {[%clk 01:30:14]} {[%emt 00:00:42]} 6. f3 {[%clk 01:32:56]} {[%emt
00:00:09]} e5 {[%clk 01:28:34]} {[%emt 00:02:11]} 7. Nb3 {[%clk 01:32:56]}
{[%emt 00:00:29]} Be7 {[%clk 01:25:28]} {[%emt 00:03:36]} 8. Be3 {[%clk
01:33:11]} {[%emt 00:00:14]} a5 {[%clk 01:25:34]} {[%emt 00:00:25]} 9. Bb5
{[%clk 01:33:06]} {[%emt 00:00:35]} O-O {[%clk 01:25:56]} {[%emt 00:00:07]} 10.
Qd2 {[%clk 01:33:18]} {[%emt 00:00:18]} Na7 {[%clk 01:25:58]} {[%emt 00:00:29]}
11. Bxa7 {[%clk 01:33:20]} {[%emt 00:00:27]} Rxa7 {[%clk 01:26:22]} {[%emt
00:00:06]} 12. a4 {[%clk 01:31:26]} {[%emt 00:02:24]} Be6 {[%clk 01:24:53]}
{[%emt 00:01:59]} 13. O-O-O {[%clk 01:29:23]} {[%emt 00:02:32]} Ra8 {[%clk
01:09:30]} {[%emt 00:15:54]} 14. Kb1 {[%clk 01:29:12]} {[%emt 00:00:40]} Qc8
{[%clk 01:03:58]} {[%emt 00:06:02]} 15. g4 {[%clk 01:19:39]} {[%emt 00:10:03]}
Rd8 {[%clk 01:01:14]} {[%emt 00:03:14]} 16. Qf2 {[%clk 01:05:39]} {[%emt
00:14:30]} Qc7 {[%clk 00:49:09]} {[%emt 00:12:35]} 17. h4 {[%clk 01:02:29]}
{[%emt 00:03:39]} h5 {[%clk 00:43:26]} {[%emt 00:06:14]} 18. g5 {[%clk
00:58:49]} {[%emt 00:04:10]} Nh7 {[%clk 00:41:46]} {[%emt 00:02:10]} 19. f4
{[%clk 00:54:44]} {[%emt 00:04:35]} exf4 {[%clk 00:39:46]} {[%emt 00:02:29]} 20.
Qxf4 {[%clk 00:53:42]} {[%emt 00:01:33]} Nf8 {[%clk 00:39:48]} {[%emt
00:00:29]} 21. Nd4 {[%clk 00:43:13]} {[%emt 00:10:58]} Ng6 {[%clk 00:36:08]}
{[%emt 00:04:10]} 22. Nxe6 {[%clk 00:42:28]} {[%emt 00:01:15]} fxe6 {[%clk
00:36:31]} {[%emt 00:00:07]} 23. Qf3 {[%clk 00:42:48]} {[%emt 00:00:10]} Rac8
{[%clk 00:34:55]} {[%emt 00:02:05]} 24. Rhf1 {[%clk 00:38:09]} {[%emt
00:05:09]} Rf8 {[%clk 00:31:49]} {[%emt 00:03:37]} 25. Qxh5 {[%clk 00:37:52]}
{[%emt 00:00:47]} Nf4 {[%clk 00:32:12]} {[%emt 00:00:07]} 26. Qg4 {[%clk
00:37:06]} {[%emt 00:01:15]} d5 {[%clk 00:26:29]} {[%emt 00:06:14]} 27. exd5
{[%clk 00:32:03]} {[%emt 00:05:33]} Bb4 {[%clk 00:23:19]} {[%emt 00:03:39]} 28.
Rf3 {[%clk 00:30:52]} {[%emt 00:01:41]} exd5 {[%clk 00:17:59]} {[%emt
00:05:50]} 29. Rd4 {[%clk 00:27:08]} {[%emt 00:04:14]} Bd6 {[%clk 00:12:50]}
{[%emt 00:05:40]} 30. Bd7 {[%clk 00:25:44]} {[%emt 00:01:54]} Qb6 {[%clk
00:11:43]} {[%emt 00:01:37]} 31. Rdxf4 {[%clk 00:22:18]} {[%emt 00:03:56]} 1-0

[Event "Hoogeveen Open 2023"]
[Site "Hoogeveen, Netherlands"]
[Date "2023.10.28"]
[Round "9.8"]
[White "Kazarjan, Gachatur"]
[Black "De Boer, Eelke"]
[Result "0-1"]
[TimeControl "90min/40moves + 30min + 30sec/move"]
[WhiteFideId "1068750"]
[BlackFideId "1048120"]
[WhiteElo "1970"]
[BlackElo "2327"]

1. e4 {[%clk 01:30:57]} {[%emt 00:00:02]} c5 {[%clk 01:30:55]} {[%emt
00:00:05]} 2. Nf3 {[%clk 01:31:24]} {[%emt 00:00:04]} d6 {[%clk 01:31:19]}
{[%emt 00:00:06]} 3. Nc3 {[%clk 01:31:51]} {[%emt 00:00:03]} a6 {[%clk
01:30:50]} {[%emt 00:00:59]} 4. d4 {[%clk 01:30:57]} {[%emt 00:01:24]} cxd4
{[%clk 01:29:38]} {[%emt 00:01:41]} 5. Nxd4 {[%clk 01:31:23]} {[%emt 00:00:05]}
Nf6 {[%clk 01:30:00]} {[%emt 00:00:08]} 6. h4 {[%clk 01:31:03]} {[%emt
00:00:49]} e5 {[%clk 01:27:56]} {[%emt 00:02:34]} 7. Nb3 {[%clk 01:31:27]}
{[%emt 00:00:07]} Be7 {[%clk 01:22:26]} {[%emt 00:05:59]} 8. Bg5 {[%clk
01:31:45]} {[%emt 00:00:12]} Be6 {[%clk 01:21:49]} {[%emt 00:01:07]} 9. Bxf6
{[%clk 01:32:07]} {[%emt 00:00:08]} Bxf6 {[%clk 01:22:14]} {[%emt 00:00:06]} 10.
g3 {[%clk 01:32:33]} {[%emt 00:00:04]} O-O {[%clk 01:21:29]} {[%emt 00:01:13]}
11. Qd3 {[%clk 01:32:31]} {[%emt 00:00:34]} Nc6 {[%clk 01:12:03]} {[%emt
00:09:56]} 12. O-O-O {[%clk 01:27:11]} {[%emt 00:05:50]} Qb6 {[%clk 01:10:23]}
{[%emt 00:02:10]} 13. Rd2 {[%clk 01:17:30]} {[%emt 00:10:10]} Rfc8 {[%clk
01:00:37]} {[%emt 00:10:16]} 14. Bh3 {[%clk 01:08:15]} {[%emt 00:09:45]} Nb4
{[%clk 00:48:20]} {[%emt 00:12:47]} 15. Qf3 {[%clk 01:02:58]} {[%emt 00:05:47]}
a5 {[%clk 00:46:19]} {[%emt 00:02:31]} 16. Kb1 {[%clk 01:01:16]} {[%emt
00:02:12]} a4 {[%clk 00:37:20]} {[%emt 00:09:30]} 17. Nc1 {[%clk 01:01:30]}
{[%emt 00:00:16]} a3 {[%clk 00:37:40]} {[%emt 00:00:10]} 18. b3 {[%clk
01:01:46]} {[%emt 00:00:14]} Qc5 {[%clk 00:36:04]} {[%emt 00:02:06]} 19. N1e2
{[%clk 01:00:38]} {[%emt 00:01:37]} Ra6 {[%clk 00:35:37]} {[%emt 00:00:57]} 20.
Nd5 {[%clk 00:57:22]} {[%emt 00:03:46]} Nxd5 {[%clk 00:34:10]} {[%emt
00:01:57]} 21. Bxe6 {[%clk 00:55:47]} {[%emt 00:02:06]} fxe6 {[%clk 00:33:10]}
{[%emt 00:01:30]} 22. exd5 {[%clk 00:56:06]} {[%emt 00:00:11]} Qb4 {[%clk
00:24:10]} {[%emt 00:09:30]} 23. c3 {[%clk 00:52:45]} {[%emt 00:03:51]} Qa5
{[%clk 00:22:31]} {[%emt 00:02:09]} 24. Rc1 {[%clk 00:46:40]} {[%emt 00:06:34]}
Qc7 {[%clk 00:21:07]} {[%emt 00:01:55]} 25. dxe6 {[%clk 00:41:40]} {[%emt
00:05:31]} Qe7 {[%clk 00:20:44]} {[%emt 00:00:52]} 26. Qe4 {[%clk 00:40:09]}
{[%emt 00:02:01]} Qxe6 {[%clk 00:17:07]} {[%emt 00:04:07]} 27. Rd5 {[%clk
00:36:21]} {[%emt 00:04:19]} Be7 {[%clk 00:15:17]} {[%emt 00:02:19]} 28. Nd4
{[%clk 00:26:55]} {[%emt 00:09:56]} Qf6 {[%clk 00:15:16]} {[%emt 00:00:31]} 29.
Nf5 {[%clk 00:27:13]} {[%emt 00:00:12]} Rf8 {[%clk 00:14:10]} {[%emt 00:01:36]}
30. Nxe7+ {[%clk 00:26:23]} {[%emt 00:01:21]} Qxe7 {[%clk 00:14:38]} {[%emt
00:00:01]} 31. f4 {[%clk 00:26:36]} {[%emt 00:00:17]} Qf6 {[%clk 00:12:39]}
{[%emt 00:02:29]} 32. Rf1 {[%clk 00:24:11]} {[%emt 00:02:55]} Rc6 {[%clk
00:12:06]} {[%emt 00:01:04]} 33. Rd3 {[%clk 00:24:00]} {[%emt 00:00:40]} Rfc8
{[%clk 00:10:46]} {[%emt 00:01:49]} 34. Rdf3 {[%clk 00:19:05]} {[%emt
00:05:26]} Rxc3 {[%clk 00:07:45]} {[%emt 00:03:31]} 35. Rxc3 {[%clk 00:17:03]}
{[%emt 00:02:32]} Rxc3 {[%clk 00:08:12]} {[%emt 00:00:02]} 36. Qxb7 {[%clk
00:17:09]} {[%emt 00:00:25]} Qf5+ {[%clk 00:05:46]} {[%emt 00:02:56]} 37. Ka1
{[%clk 00:17:34]} {[%emt 00:00:06]} e4 {[%clk 00:03:19]} {[%emt 00:02:56]} 38.
Qa8+ {[%clk 00:17:25]} {[%emt 00:00:39]} Rc8 {[%clk 00:03:42]} {[%emt
00:00:07]} 39. Qxa3 {[%clk 00:17:39]} {[%emt 00:00:16]} d5 {[%clk 00:00:58]}
{[%emt 00:03:14]} 40. Qb2 {[%clk 00:17:29]} {[%emt 00:00:40]} e3 {[%clk
00:00:51]} {[%emt 00:00:37]} 41. Qd4 {[%clk 00:17:39]} {[%emt 00:00:20]} e2
{[%clk 00:21:53]} {[%emt 00:09:27]} 42. Re1 {[%clk 00:47:37]} {[%emt 00:00:32]}
Re8 {[%clk 00:20:21]} {[%emt 00:02:02]} 43. Kb2 {[%clk 00:45:57]} {[%emt
00:02:11]} h5 {[%clk 00:19:22]} {[%emt 00:01:28]} 44. a4 {[%clk 00:42:13]}
{[%emt 00:04:15]} Re4 {[%clk 00:19:20]} {[%emt 00:00:32]} 45. Qd3 {[%clk
00:41:42]} {[%emt 00:01:00]} Qe6 {[%clk 00:17:11]} {[%emt 00:02:39]} 46. a5
{[%clk 00:39:19]} {[%emt 00:02:54]} Kh8 {[%clk 00:06:00]} {[%emt 00:11:40]} 47.
a6 {[%clk 00:36:17]} {[%emt 00:03:32]} Re3 {[%clk 00:03:51]} {[%emt 00:02:40]}
48. Qd4 {[%clk 00:36:02]} {[%emt 00:00:44]} Re4 {[%clk 00:02:15]} {[%emt
00:02:06]} 49. Qd3 {[%clk 00:35:09]} {[%emt 00:01:23]} Re3 {[%clk 00:01:26]}
{[%emt 00:01:19]} 50. Qb5 {[%clk 00:32:49]} {[%emt 00:02:51]} Qf6+ {[%clk
00:01:24]} {[%emt 00:00:32]} 51. Ka3 {[%clk 00:32:58]} {[%emt 00:00:21]} Re6
{[%clk 00:01:33]} {[%emt 00:00:20]} 52. Qxd5 {[%clk 00:27:04]} {[%emt
00:06:24]} Rxa6+ {[%clk 00:01:49]} {[%emt 00:00:14]} 53. Kb4 {[%clk 00:27:32]}
{[%emt 00:00:02]} Qe7+ {[%clk 00:01:12]} {[%emt 00:01:07]} 54. Kc3 {[%clk
00:25:17]} {[%emt 00:02:45]} Qe3+ {[%clk 00:00:36]} {[%emt 00:01:06]} 55. Kb2
{[%clk 00:25:37]} {[%emt 00:00:10]} Qe8 {[%emt 00:00:36]} 56. Qd3 {[%clk
00:24:18]} {[%emt 00:01:46]} Re6 {[%clk 00:00:53]} {[%emt 00:00:10]} 57. f5
{[%clk 00:22:21]} {[%emt 00:02:26]} Re3 {[%clk 00:01:00]} {[%emt 00:00:23]} 58.
Qd4 {[%clk 00:22:28]} {[%emt 00:00:24]} Qe7 {[%clk 00:00:51]} {[%emt 00:00:38]}
59. Kc2 {[%clk 00:18:15]} {[%emt 00:04:44]} Rxg3 {[%clk 00:00:45]} {[%emt
00:00:37]} 60. Qc4 {[%clk 00:18:09]} {[%emt 00:00:36]} Re3 {[%clk 00:00:48]}
{[%emt 00:00:26]} 61. Kd2 {[%clk 00:18:01]} {[%emt 00:00:37]} Re4 {[%clk
00:00:54]} {[%emt 00:00:25]} 62. Qd3 {[%clk 00:14:59]} {[%emt 00:03:33]} Qxh4
{[%clk 00:01:03]} {[%emt 00:00:20]} 63. Qc3 {[%clk 00:14:07]} {[%emt 00:01:22]}
Qf4+ {[%clk 00:01:06]} {[%emt 00:00:26]} 64. Kc2 {[%clk 00:14:33]} {[%emt
00:00:05]} Qxf5 {[%clk 00:01:22]} {[%emt 00:00:13]} 65. Qd3 {[%clk 00:15:01]}
{[%emt 00:00:03]} Qe5 {[%clk 00:01:09]} {[%emt 00:00:42]} 66. Qd8+ {[%clk
00:14:26]} {[%emt 00:01:06]} Kh7 {[%clk 00:01:33]} {[%emt 00:00:06]} 67. Qd3
{[%clk 00:14:40]} {[%emt 00:00:16]} g6 {[%clk 00:01:03]} {[%emt 00:01:00]} 68.
Qd7+ {[%clk 00:14:56]} {[%emt 00:00:14]} Kh6 {[%clk 00:01:26]} {[%emt
00:00:07]} 69. Qd2+ {[%clk 00:14:44]} {[%emt 00:00:42]} g5 {[%clk 00:01:49]}
{[%emt 00:00:07]} 70. Qd3 {[%clk 00:14:56]} {[%emt 00:00:18]} h4 {[%clk
00:01:50]} {[%emt 00:00:29]} 71. Qf3 {[%clk 00:15:09]} {[%emt 00:00:17]} Kg6
{[%clk 00:01:10]} {[%emt 00:01:10]} 72. Qf8 {[%clk 00:15:15]} {[%emt 00:00:24]}
Qd5 {[%clk 00:00:44]} {[%emt 00:00:56]} 73. Qc8 {[%clk 00:15:18]} {[%emt
00:00:27]} g4 {[%clk 00:00:41]} {[%emt 00:00:32]} 74. Qh8 {[%clk 00:15:14]}
{[%emt 00:00:34]} h3 {[%clk 00:00:50]} {[%emt 00:00:21]} 75. Qh4 {[%clk
00:15:14]} {[%emt 00:00:30]} Qf5 {[%clk 00:00:59]} {[%emt 00:00:21]} 0-1